{"text_format":"3","workbook":"xlsx","n_sheets":13,"sheets":["Início","Noções Básicas","Introdução às Funções","MÉDIA","MÍNIMO E MÁXIMO","Data e Hora","Unir texto e números","Instruções SE","PROCV","Funções Condicionais","Assistente de Funções","Erros em Fórmulas","Saiba mais"],"not_rendered":{"images":30,"defined_names":21},"read":"whole","date_system":"1900"}

{"sheet":"Início","index":0,"n_rows":4,"n_cols":1,"rows_kept":4}
[]
["Introdução às fórmulas"]
["Em poucos passos, estará pronto para começar a criar fórmulas e funções no Excel, a aplicação de folhas de cálculo mais avançada do mundo."]
["Aceda à parte superior ao premir Ctrl+Home. Para começar a apresentação, prima Ctrl+Page Down."]

{"sheet":"Noções Básicas","index":1,"n_rows":43,"n_cols":10,"rows_kept":43}
["Noções Básicas: matemática com o Excel"]
["Pode Somar, Subtrair, Multiplicar e Dividir no Excel sem utilizar funções incorporadas. Só precisa de alguns operadores básicos: +, -, *, /. Todas as fórmulas começam com um sinal de igual (=).\n",null,"Números a utilizar:",null,"Operação:","Fórmulas:","Respostas:"]
["Para Somar, selecione a célula F3, escreva =C3+C4 e prima Enter. \n",null,1,null,"Soma (+) ",null,{"$f":"C3+C4","v":3}]
["Para Subtrair, selecione a célula F4, escreva =C3-C4 e prima Enter. ",null,2,null,"Subtração (-) ",null,{"$f":"C3-C4","v":-1}]
["Para Multiplicar, selecione a célula F5, escreva =C3*C4 e prima Enter.\n",{"$nulls":3},"Multiplicação (*) ",null,{"$f":"C3*C4","v":2}]
["Para Dividir, selecione a célula F6, escreva =C3/C4 e prima Enter.\n",{"$nulls":3},"Divisão (/) ",null,{"$f":"C3/C4","v":0.5}]
["Experimente: altere os números nas células C3 e C4 e veja como os resultados da fórmula são automaticamente alterados.",{"$nulls":3},"Potência (^) ",null,{"$f":"C3^C4","v":1}]
["PONTOS EXTRA: pode elevar um valor à potência com o acento circunflexo (^), por exemplo, =A1^A2. Pode introduzi-lo ao premir Shift+~. Na célula F7, introduza =C3^C4."]
["Desça para ver mais detalhes"]
["Passo seguinte"]
["Mais informações sobre fórmulas, células e intervalos"]
["O Excel é composto por células individuais agrupadas em linhas e colunas. As linhas são numeradas e as colunas têm letras. Existem mais de um milhão de linhas e 16 mil colunas, e pode escrever fórmulas em qualquer uma delas. \n"]
["As fórmulas podem conter referências a células, intervalos de referências a células, operadores e constantes. Eis alguns exemplos de fórmulas:\n\n=A1+B1\n=10+20\n=SOMA(A1:A10)\n\n"]
["No terceiro exemplo acima, utilizámos a função SOMA. Uma função é um comando previamente criado que calcula um ou mais valores e devolve um resultado. Por exemplo, a função SOMA soma as referências ou intervalos de células que especificar. Neste exemplo, soma as células A1 a A10. O Excel tem mais de 400 funções, que pode explorar no separador Fórmulas.\n"]
["As fórmulas com funções começam com um sinal de igual, seguido do nome da função e dos argumentos (os valores que uma função utiliza para calcular) entre parênteses. \n"]
["Pode confirmar uma fórmula ao premir Enter. Após isso, a fórmula irá efetuar o cálculo e o resultado será apresentado na célula. Para ver a fórmula em si, pode observar a barra de fórmulas por baixo do Friso ou premir F2 para entrar no Modo de edição, onde verá a fórmula na célula. Prima Enter novamente para finalizar a fórmula e calcular o resultado.\n\n"]
["Explicações sobre a fórmula"]
["ºNa fórmula =10+20, 10 e 20 são constantes e o sinal + é o operador."]
["Na fórmula =SOMA(A1:A10), SOMA é o nome da função, os parênteses esquerdo e direito contêm os argumentos da fórmula e A1:A10 é o intervalo de células para a função."]
["Na fórmula =SOMA(A1:A10;C1:C10), SOMA é o nome da função, os parênteses esquerdo e direito contêm os argumentos da fórmula e A1:A10;C1:C10 são os intervalos de células para a função separados por ponto e vírgula."]
["INFORMAÇÕES ÚTEIS: as constantes são valores que introduz em células ou fórmulas. Apesar de =10+20 efetuar um cálculo igual a =A1+B1, as constantes não são recomendadas. Porquê? Porque não consegue ver a constante facilmente sem selecionar a célula e procurá-la. Assim, poderá ser difícil alterá-la posteriormente. É muito mais fácil colocar as suas constantes em células, onde podem ser facilmente ajustadas e referenciadas nas fórmulas.\n\nPor exemplo: selecione a célula amarela com o número 12 abaixo. Verá que utilizámos a função SOMA com um intervalo de células. Não escrevemos \"4\" ou \"8\" diretamente na fórmula. \n"]
["Anterior"]
["Seguinte"]
["Mais informações na Web"]
["Utilizar o Excel como uma calculadora"]
["Descrição geral de fórmulas no Excel"]
["Funções do Excel (por categoria) "]
["Funções do Excel (por ordem alfabética) "]
["Formação online gratuita do Excel"]
{"$rows_empty":10}
[{"$nulls":9},"Valores"]
[{"$nulls":9},4]
[{"$nulls":9},8]
[{"$nulls":9},{"$f":"SUM(J41:J42)","v":12}]

{"sheet":"Introdução às Funções","index":2,"n_rows":51,"n_cols":7,"rows_kept":51}
["Introdução às funções"]
["Pode realizar inúmeras ações com as funções, tal como operações matemáticas, procurar valores ou até calcular datas e horas. Vamos experimentar somar valores com a função SOMA de algumas maneiras diferentes.",null,"Fruta","Quantidade",null,"Carne","Quantidade"]
["Na coluna Quantidade referente à Fruta (célula D7), introduza =SOMA(D3:D6) ou escreva =SOMA( e, em seguida, selecione o intervalo com o rato e prima Enter. Esta ação irá somar os valores nas células D3, D4, D5 e D6. O resultado deverá ser 170.\n",null,"Maçãs",50,null,"Carne de Vaca",50]
["Vamos experimentar a Soma Automática. Selecione a célula na coluna referente à Carne (célula G7) e, em seguida, aceda a Fórmulas > Soma Automática > selecione SOMA. Verá como o Excel introduz a fórmula automaticamente. Prima Enter para confirmar. A funcionalidade Soma Automática tem todas as funções mais comuns.\n",null,"Laranjas",20,null,"Frango",30]
["Eis um atalho de teclado útil. Selecione a célula D15 e prima Alt, Shift e = e prima Enter. A função SOMA é introduzida automaticamente.",null,"Bananas",60,null,"Porco",10]
["Desça para ver mais detalhes",null,"Limões",40,null,"Peixe",50]
["PONTOS EXTRA\nExperimente a função CONTAR através de qualquer método que já experimentou. A função CONTAR conta o número de células num intervalo que contêm números.",null,"SOMA > ",{"$f":"SUM(D3:D6)","v":170},null,"SOMA > "]
["Passo seguinte"]
["Mais informações sobre funções",null,"Item","Quantidade",null,"Item","Quantidade"]
["Aceda ao separador Fórmulas e procure na Biblioteca de Funções, onde as funções são apresentadas por categoria, como Texto, Data e Hora, etc. A opção Inserir Função permite-lhe procurar funções pelo nome e iniciar um assistente de funções que o ajuda a criar a sua fórmula. \n\nAo começar a escrever o nome de uma função e premir =, o Excel inicia o IntelliSense, que apresenta uma lista de funções que começam pelas mesmas letras que escrever. Quando encontrar a que pretende, prima a Tecla de Tabulação e o Excel irá preencher o nome da função e introduzir o parêntese esquerdo automaticamente. Também irá apresentar os argumentos opcionais e obrigatórios. \n\n\n\nVamos analisar a estrutura de algumas funções. A função SOMA tem a seguinte estrutura:",null,"Pão",50,null,"Pão",50]
["Se a função SOMA pudesse falar, diria: devolver a soma de todos os valores nas células D35 a D38 e de toda a coluna H. SOMA é o nome da função, D35:D38 é o primeiro intervalo de valores, que é quase sempre obrigatório, e H:H é o segundo intervalo de valores, separados por ponto e vírgula. Agora, vamos experimentar uma função que não necessite de argumentos.\n",null,"Dónutes",100,null,"Dónutes",100]
["A função HOJE devolve a data de hoje. O resultado é atualizado automaticamente quando o Excel volta a calcular.",null,"Bolachas",40,null,"Bolachas",40]
["INTERESSANTE\nSelecione estas células. Em seguida, no canto inferior direito da janela do Excel, procure o texto SOMA: 170 na barra inferior. É denominada Barra de Estado e é mais uma forma rápida de ver um total e outros detalhes sobre um intervalo ou célula selecionado. ",null,"Bolos",50,null,"Bolos",50]
["DETALHE IMPORTANTE\nFaça duplo clique nesta célula. Verá o número 100 no fim. Embora seja possível colocar números numa fórmula como esta, não o recomendamos a menos que seja necessário. São conhecidos como constantes e é fácil esquecer-se de que estão lá. Recomendamos que faça antes referência a outra célula, como a célula F51. Dessa forma, é vista facilmente e não fica oculta dentro de uma fórmula. ",null,"Tartes",20,null,"Tartes",20]
["Mais informações na Web",null,"SOMA > ",null,null,"CONTAR >"]
["Tudo sobre a função SOMA"]
["Utilizar a funcionalidade Soma Automática para somar números"]
["Tudo sobre a função CONTAR"]
["Formação online gratuita do Excel"]
["Voltar ao início"]
["Passo seguinte"]
{"$rows_empty":12}
[null,null,"Fruta","Quantidade"]
[null,null,"Maçãs",50]
[null,null,"Laranjas",20]
[null,null,"Bananas",60]
[null,null,"Limões",40]
[null,null,"SOMA > ",{"$f":"SUM(D35:D38)","v":170}]
[]
[]
[]
[]
[null,null,"Item","Quantidade"]
[null,null,"Carros",20]
[null,null,"Camiões",10]
[null,null,"Bicicletas",10]
[null,null,"Skates",40]
[]
[{"$nulls":3},"Total:",null,"Valor Adicional","Novo Total"]
[{"$nulls":3},{"$f":"SUM(D45:D48,100)","v":180},null,100,{"$f":"SUM(D45:D48,F51)","v":180}]

{"sheet":"MÉDIA","index":3,"n_rows":15,"n_cols":7,"rows_kept":15}
["Função MÉDIA"]
["Utilize a função MÉDIA para obter uma média dos números num intervalo de células.",null,"Fruta","Quantidade",null,"Carne","Quantidade"]
["Selecione a célula D7 e, em seguida, utilize a Soma Automática para adicionar uma função MÉDIA.",null,"Maçãs",50,null,"Carne de Vaca",50]
["Agora, selecione a célula G7 e introduza uma função MÉDIA ao escrever =MÉDIA(G3:G6). ",null,"Laranjas",20,null,"Frango",30]
["Na célula D15, pode utilizar a Soma Automática ou introduzir uma função MÉDIA manualmente. ",null,"Bananas",60,null,"Porco",10]
["INTERESSANTE\nSelecione um intervalo de números e, em seguida, olhe para a Barra de Estado para obter uma Média imediatamente.\n",null,"Limões",40,null,"Peixe",50]
["Ativar a folha anterior",null,"MÉDIA >",null,null,"MÉDIA >"]
["Ir para a folha seguinte"]
["PONTOS EXTRA\nExperimente utilizar as funções MED ou MODA aqui. \n\nA função MED dá-lhe o valor no meio do conjunto de dados e a função \nMODA dá-lhe o valor que ocorre com mais frequência.\n",null,"Item","Quantidade",null,"Item","Quantidade"]
["Ligações para mais informações na Web",null,"Pão",50,null,"Pão",50]
["Selecione para aceder à Web e saber tudo sobre a função MÉDIA",null,"Dónutes",100,null,"Dónutes",100]
["Selecione para aceder à Web e saber tudo sobre a função MED",null,"Bolachas",40,null,"Bolachas",40]
["Selecione para aceder à Web e saber tudo sobre a função MODA",null,"Bolos",50,null,"Bolos",50]
["Selecione para aceder à Web e saber tudo sobre formação online gratuita do Excel",null,"Tartes",20,null,"Tartes",20]
[null,null,"MÉDIA >"]

{"sheet":"MÍNIMO E MÁXIMO","index":4,"n_rows":15,"n_cols":7,"rows_kept":15}
["Funções MÍNIMO e MÁXIMO"]
["Utilize a função MÍNIMO para obter o número mínimo num intervalo de células.",null,"Fruta","Quantidade",null,"Carne","Quantidade"]
["Utilize a função MÁXIMO para obter o número máximo num intervalo de células.",null,"Maçãs",50,null,"Carne de Vaca",50]
["Selecione a célula D7 e, em seguida, utilize o Assistente de Soma Automática para adicionar uma função MÍNIMO.\n",null,"Laranjas",20,null,"Frango",30]
["Agora, selecione a célula G7 e introduza a função MÁXIMO ao escrever =MÁXIMO(G3:G6).\n",null,"Bananas",60,null,"Porco",10]
["Na célula D15, pode utilizar o Assistente de Soma Automática ou escrever uma função MÍNIMO ou MÁXIMO manualmente. \n",null,"Limões",40,null,"Peixe",50]
["Mais informações na Web\n",null,"MÍNIMO >",null,null,"MÁXIMO >"]
["Tudo sobre a função MÍNIMO"]
["Tudo sobre a função MÁXIMO",null,"Item","Quantidade",null,"Item","Quantidade"]
["Formação online gratuita do Excel",null,"Pão",50,null,"Pão",50]
["INFORMAÇÕES ÚTEIS\nPode utilizar a função MÍNIMO ou MÁXIMO com múltiplos intervalos ou valores para apresentar os valores mais baixos ou mais elevados. Por exemplo, =MÍNIMO(A1:A10;B1:B10) ou =MÁXIMO(A1:A10;B1), em que a célula B1 contém um valor de limiar, como 10. Neste caso, a fórmula nunca irá devolver um resultado inferior a 10.\n",null,"Dónutes",100,null,"Dónutes",100]
[null,null,"Bolachas",40,null,"Bolachas",40]
[null,null,"Bolos",50,null,"Bolos",50]
[null,null,"Tartes",20,null,"Tartes",20]
[null,null,"MÍNIMO ou MÁXIMO >",{"$nulls":3},{"$f":"MIN(G10:G14,10)","v":10}]

{"sheet":"Data e Hora","index":5,"n_rows":47,"n_cols":6,"rows_kept":47,"merged":[[4,2,4,3],[26,2,26,3],[30,2,30,3],[44,2,44,3]]}
["Funções com Datas"]
["O Excel pode apresentar-lhe a data atual, com base nas definições de região do seu computador. Também pode somar e subtrair Datas."]
["Veja a função HOJE, que lhe apresenta a data de hoje. Estas funções são voláteis, já que se abrir o livro amanhã, será apresentada a data de amanhã. Introduza =HOJE() na célula D6. \n"]
["Subtrair Datas – introduza o seu próximo aniversário no formato DD/MM/AA na célula D7 e veja como o Excel o informa de quantos dias faltam com a fórmula =D7-D6 na célula D8.\n"]
["Somar Datas – imagine que pretende saber quando é o prazo de pagamento de uma fatura ou quando precisa de devolver um livro à biblioteca. Pode somar dias a uma data para descobrir. Na célula D10, introduza um número de dias aleatório. Na célula D11, somámos as células =D6+D10 para calcular o prazo a partir de hoje.\n",null,"Funções com Datas"]
["INFORMAÇÕES ÚTEIS\nO Excel guarda as datas e horas com base no número de dias a partir de 1 de janeiro de 1900. As horas são guardadas em partes fracionárias de um dia baseado em minutos. Então, 01/01/2017 às 12:30 é armazenado como 42736,5208. Se os valores de Hora ou Data forem apresentados como números semelhantes a este, pode premir Ctrl+1 > Número > selecionar um formato Data ou Hora. ",null,"Data de hoje:",null,null,{"$f":"IF(D6=TODAY(),\"Muito bem!\",\"\")","v":""}]
["DETALHE IMPORTANTE\nSe não quiser que o Excel apresente um número negativo por ainda não ter introduzido o seu dia de aniversário, pode utilizar a função SE da seguinte maneira: =SE(D7=\"\";\"\";D7-D6), que diz: \"SE D7 for igual a nada, então deixar a célula vazia, caso contrário mostrar o resultado da subtração da célula D7 pela célula D6\".\n",null,"O seu aniversário:"]
["Funções com Horas",null,"Dias até ao seu aniversário:",{"$f":"D7-D6","v":0}]
["O Excel pode apresentar-lhe a hora atual, com base nas definições de região do seu computador. Também pode somar e subtrair horas. Por exemplo, poderá querer controlar quantas horas um funcionário trabalhou em cada semana e calcular o seu salário e horas extraordinárias.\n"]
["Na célula D28, introduza =AGORA(), que lhe devolve a hora atual e o resultado será atualizado sempre que o Excel efetuar o cálculo. Se precisar de alterar o formato Hora, pode premir Ctrl+1 e aceder a Número > Hora > selecionar o formato pretendido.\n",null,"Dias de período de tolerância:"]
["Somar horas entre horas – Na célula D36 introduzimos =((D35-D32)-(D34-D33))*24, que calcula as horas de entrada e de saída de um funcionário e subtrai o tempo de almoço. A parte *24 no fim da fórmula converte a parte fracionária do dia que o Excel analisa em horas. Terá de formatar a célula como um Número. Para fazê-lo, aceda a Base > Formatar > Formatar Células (Ctrl+1) > Número > Número > 2 casas decimais.\n\n",null,"Fatura com prazo de pagamento a:",{"$f":"D6+D10","v":"00:00:00"}]
["Se esta fórmula falasse, diria \"Subtrair a Hora de Saída pela Hora de Entrada e, em seguida, subtrair a Saída para Almoço da Chegada do Almoço. Multiplicar os valores por 24 para converter o valor de tempo fracionário do Excel em horas\", ou seja, =((Hora de Saída - Hora de Entrada)-(Saída para Almoço - Chegada do Almoço))*24."]
["Anterior"]
["Seguinte"]
["Mais informações na Web"]
["Tudo sobre a função HOJE"]
["Tudo sobre a função AGORA"]
["Tudo sobre a função DATA"]
["Formação online gratuita do Excel"]
{"$rows_empty":7}
[null,null,"Funções com Horas"]
[null,null,"Hora Atual:"]
[]
[]
[null,null,"Horas Diárias de Trabalho"]
[null,null,"Hora de Entrada:","08:00:00"]
[null,null,"Saída para Almoço:","12:00:00"]
[null,null,"Chegada do Almoço:","13:00:00"]
[null,null,"Hora de Saída:","17:00:00"]
[null,null,"Total de Horas:",{"$f":"((D35-D32)-(D34-D33))*24","v":8.000000000000002}]
{"$rows_empty":8}
[null,null,"Data e Hora Estáticas"]
[null,null,"Data:","2017-09-27"]
[null,null,"Hora:","08:52:00"]

{"sheet":"Unir texto e números","index":6,"n_rows":37,"n_cols":6,"rows_kept":37,"merged":[[26,2,26,3],[30,2,30,3],[34,2,34,3]]}
["Unir texto de células diferentes"]
["Muitas vezes, ao trabalhar no Excel, irá querer unir texto que se encontra em células diferentes. Este exemplo é muito comum: tem uma lista de nomes próprios e apelidos e quer combiná-los como nome próprio, apelido ou como o nome completo. Felizmente, o Excel permite-nos fazê-lo com o símbolo de E comercial (&), que pode introduzir ao premir Shift+6.\n",null,"Nome Próprio","Apelido","Apelido, Nome Próprio","Nome Completo"]
["Na célula E3, introduza =D3&C3 para unir o apelido e o nome próprio. \n",null,"Margarida","Gouveia",{"$f":"D3&\", \"&C3","v":"Gouveia, Margarida"},{"$f":"C3&\" \"&D3","v":"Margarida Gouveia"}]
["GouveiaMargarida não parece correto. Precisamos de adicionar uma vírgula e espaço. Para fazê-lo, vamos utilizar aspas para criar uma nova cadeia de texto. Agora, introduza =D3&\", \"&C3. A parte &\", \"& permite-nos juntar uma vírgula e espaço ao texto nas células.\n",null,"Samuel","Costa"]
["Para criar um nome completo, vamos unir o nome próprio e o apelido e utilizar um espaço sem vírgula. Na célula F3, introduza =C3&\" \"&D3.\n",null,"Adriana","Mota"]
["Desça para ver mais detalhes",null,"Eduarda","Almeida"]
["Seguinte",null,"Guilherme","Sarmento"]
["Utilizar texto e números em conjunto",null,"Bernardo","Cardoso"]
["Agora, vamos utilizar & para unir texto e números e não apenas texto\n\nRepare nas células C28:D29. As datas e horas estão em células separadas. Pode associá-las com o símbolo &, como pode ver nas células C32:C33. No entanto, o resultado não parece correto. Infelizmente, o Excel não sabe como quer formatar os números, pelo que os apresenta no seu formato mais básico, que neste caso é a data em série. Precisamos de explicar ao Excel como formatar a parte do número da fórmula, para que seja apresentado como pretendido na cadeia de texto. Pode fazê-lo com a função TEXTO e código de formatação.",null,"Francisco","Sousa"]
["Na célula C36, introduza =C28&\" \"&TEXTO(D28;\"MM/DD/AAAA\"). MM/DD/AAAA é o código de formato dos EUA para Mês/Dia/Ano, por exemplo, 09/25/2017.\n",null,"Teresa","Andrade"]
["Na célula C37, introduza =C29&\" \"&TEXTO(D29;\"H:MM\"). H:MM é o código do formato português para Horas:Minutos, por exemplo, 13:30.\n"]
["INTERESSANTE\nAs fórmulas, especialmente as fórmulas grandes, podem ser por vezes difíceis de ler, mas pode separar as partes com espaços, por exemplo:\n\n=C28 & \" \" & TEXTO(D28;\"MM/DD/AAAA\")"]
["PARA EXPLORAR\nSe não souber que código de formato utilizar, pode premir Ctrl+1 > Número para formatar qualquer célula como quiser. Em seguida, selecione a opção Personalizado. Pode copiar o código de formato apresentado para a sua fórmula."]
["Mais informações na Web"]
["Tudo sobre a função TEXTO"]
["Combinar texto e números"]
["Formação online gratuita do Excel"]
{"$rows_empty":9}
[null,null,"Utilizar texto e números"]
[null,null,"Data de hoje:",{"$f":"TODAY()","v":"2021-10-19"}]
[null,null,"Hora atual:",{"$f":"NOW()","v":44488.464227199074}]
[]
[null,null,"Unir texto e números"]
[null,null,{"$f":"C28&\" \"&D28","v":"Data de hoje: 44488"}]
[null,null,{"$f":"C29&\" \"&D29","v":"Hora atual: 44488.4642271991"}]
[]
[null,null,"Formatar texto e números"]
[null,null,{"$f":"C28 &\" \"& TEXT(D28,\"DD/MM/AAAA\")","v":"Data de hoje: 19/10/Tuesday"}]
[null,null,{"$f":"C29&\" \"&TEXT(D29,\"H:MM\")","v":"Hora atual: 11:08"}]

{"sheet":"Instruções SE","index":7,"n_rows":37,"n_cols":6,"rows_kept":37,"merged":[[7,2,7,3]]}
["Instruções SE"]
["As instruções SE permitem-lhe fazer comparações lógicas entre condições. Uma instrução SE geralmente diz: se uma condição for verdadeira, então fazer algo, caso contrário fazer outra coisa. As fórmulas podem devolver texto, valores ou até mais cálculos."]
["Na célula D9 introduza =SE(C9=\"Maçã\";VERDADEIRO;FALSO). A resposta correta é VERDADEIRO. \n"]
["Copie os conteúdos da célula D9 para a célula D10. A resposta aqui deverá ser FALSO porque uma laranja não é uma maçã.\n"]
["Experimente outro exemplo: analise a fórmula na célula D12. Já introduzimos =SE(C12<100;\"Menor que 100\";\"Maior ou igual a 100\"). O que acontece se introduzir um número maior que 100 na célula C12?\n"]
["DETALHE IMPORTANTE\nAs palavras VERDADEIRO e FALSO são processadas de forma diferente das outras palavras nas fórmulas do Excel, pois não necessitam de estar entre aspas – o Excel converte-as em maiúsculas automaticamente. Os números também não têm de estar entre aspas. O texto normal, como Sim ou Não, tem de ficar entre aspas, assim: \n=SE(C9=\"Maçã\"; \"Sim\"; \"Não\")"]
["Desça para ver mais detalhes"]
["Seguinte",null,"Instruções SE"]
["A instrução SE com outra função",null,"Maçã"]
["As instruções SE também podem forçar a execução de mais cálculos se for cumprida determinada condição. Aqui vamos avaliar uma célula para ver se o Imposto Sobre Vendas deverá ser alterado e calculá-lo se a condição for verdadeira.\n",null,"Laranja"]
["Na célula F33, introduzimos =SE(E33=\"Sim\";F31*ImpostoSobreVendas;0), em que ImpostoSobreVendas está configurado como um Intervalo com Nome com o valor 0,0825. A nossa fórmula diz: se a célula E33 for igual a Sim, então multiplicar a célula F31 pelo ImpostoSobreVendas, caso contrário devolver 0.\n\nExperimente alterar Sim para Não na célula E33 para ver a alteração do cálculo."]
["Em seguida, adicionámos uma instrução SE para calcular os custos de envio, se necessário. Na célula F35 pode ver =SE(E35=\"Sim\";SOMA(D28:D29)*1,25;0). Traduzindo: \"se a célula E35 for igual a Sim, então utilizar o resultado da soma da coluna Quantidade na tabela acima e multiplicá-lo por 1,25, caso contrário devolver 0\".\n",null,50,{"$f":"IF(C12<100,\"Menor que 100\",\"Maior que 100\")","v":"Menor que 100"}]
["Em seguida, altere o valor 1,25 na fórmula na célula F35 para \"Envio\". Ao começar a escrever, a correção automática do Excel deverá encontrar o valor automaticamente. Quando o encontrar, prima a Tecla de Tabulação para introduzir o valor. Este é um Intervalo com Nome e introduzimo-lo em Fórmulas > Definir Nome. Agora, se precisar de alterar os seus custos de envio, só tem de o fazer num local e pode utilizar o nome Envio em qualquer sítio no livro.\n\n"]
["INFORMAÇÕES ÚTEIS\nAo criar uma fórmula, o Excel coloca automaticamente limites coloridos em redor dos intervalos referenciados na fórmula e os intervalos correspondentes na fórmula terão a mesma cor. Pode verificá-lo ao selecionar a célula F33 e premir F2 para editar a fórmula."]
["SUGESTÃO AVANÇADA\nOs Intervalos com Nome permitem-lhe definir termos ou valores num único sítio e reutilizá-los em todo o livro. Pode ver todos os intervalos com nome neste livro ao aceder a Fórmulas > Gestor de Nomes. Clique aqui para saber mais.\n"]
["Anterior"]
["Seguinte"]
["Mais informações na Web"]
["Tudo sobre a função SE"]
["Tudo sobre a função SE.S"]
["Instruções SE avançadas"]
["Formação online gratuita do Excel"]
[]
[]
[]
[]
[null,null,"Item","Quantidade","Custo","Total"]
[null,null,"Ferramenta",2,{"v":9.760711585683554,"d":"9.76 €"},{"$f":"'Instruções SE'!$E$28:$E$29*'Instruções SE'!$D$28:$D$29","v":{"v":19.521423171367108,"d":"19.52 €"}}]
[null,null,"Objeto",3,{"v":3.4189202461080024,"d":"3.42 €"},{"$f":"'Instruções SE'!$E$28:$E$29*'Instruções SE'!$D$28:$D$29","v":{"v":10.256760738324008,"d":"10.26 €"}}]
[]
[{"$nulls":3},"Subtotal",{"$f":"SUM('Instruções SE'!$E$28:$E$29)","v":{"v":13.179631831791557,"d":"13.18 €"}},{"$f":"SUM('Instruções SE'!F28:F29)","v":{"v":29.778183909691116,"d":"29.78 €"}}]
[]
[{"$nulls":3},"Imposto Sobre Vendas?","Sim",{"$f":"IF(E33=\"Sim\",F31*ImpostoSobreVendas,0)","v":{"v":2.456700172549517,"d":"2.46 €"}}]
[]
[{"$nulls":3},"Envio?","Sim",{"$f":"IF(E35=\"Sim\",SUM(D28:D29)*1.25,0)","v":{"v":6.25,"d":"6.25 €"}}]
[]
[{"$nulls":3},"Total",null,{"$f":"SUM(F33,F31,F35)","v":{"v":38.48488408224063,"d":"38.48 €"}}]

{"sheet":"PROCV","index":8,"n_rows":43,"n_cols":7,"rows_kept":43}
["PROCV"]
["A função PROCV é das mais utilizadas no Excel (e uma das nossas favoritas!). A função PROCV permite-lhe procurar um valor numa coluna à esquerda e, em seguida, devolve informações numa coluna à direita, se encontrar correspondência. A função PROCV diz:\n"]
["=PROCV(A1;B:C;2;FALSO)"]
["O que pretende procurar?"]
["Se localizar os conteúdos, em quantas colunas para a direita pretende que sejam localizados valores?"]
["Onde quer procurar?"]
["Pretende uma correspondência exata ou aproximada?"]
["Na célula D22, introduza =PROCV(C22;C17:D20;2;FALSO). A resposta correta para Maçãs é 50. A função PROCV procurou o valor Maçãs, localizou-o e, em seguida, analisou a coluna da direita e devolveu a quantidade.\n\n"]
["Agora, experimente na secção Carne, na célula G22. Deverá introduzir a fórmula =PROCV(F22;F17:G20;2;FALSO).\n\n"]
["EXPERIMENTE\nExperimente selecionar diferentes itens nas listas pendentes. Verá as células dos resultados a serem atualizadas automaticamente com novos valores."]
["Desça para ver mais detalhes"]
["Seguinte"]
["A função PROCV e o erro #N/D"]
["Por vezes, irá deparar-se com uma situação em que a função PROCV não consegue encontrar aquilo que pediu e devolve um erro (#N/D). Por vezes, é porque o valor de pesquisa simplesmente não existe ou poderá ser porque a célula de referência ainda não tem um valor.\n"]
["Se souber que o seu valor de pesquisa existe, mas quiser ocultar o erro se a célula de pesquisa estiver vazia, pode utilizar uma instrução SE. Neste caso, escreveremos a nossa fórmula PROCV existente na célula D43 da seguinte maneira:\n\n=SE(C43=\"\";\"\";PROCV(C43;C37:D41;2;FALSO))\n\nTraduzindo: se a célula C43 for igual a nada (\"\"), então deixar a célula vazia, caso contrário devolver os resultados da função PROCV. Repare no segundo parêntese direito no final da fórmula. Este parêntese fecha a instrução SE.\n"]
["Se não tiver a certeza se o seu valor de pesquisa existe, mas quiser suprimir o erro #N/D, pode utilizar uma função de processamento de erros denominada SE.ERRO na célula G43: =SE.ERRO(PROCV(F43;F37:G41;2;FALSO);\"\"). A função SE.ERRO diz: se a função PROCV devolver um resultado válido, então apresentar isto, caso contrário deixar a célula vazia (\"\"). Deixámos a célula vazia aqui (\"\"), mas também pode utilizar números (0,1, 2, etc.) ou texto, como \"A fórmula não está correta\".\n",null,"Fruta","Quantidade",null,"Carne","Quantidade"]
["DETALHE IMPORTANTE\nA função SE.ERRO é um processador de erros geral, o que significa que irá suprimir todos os erros que a sua fórmula poderá devolver. Isto poderá originar problemas se o Excel lhe apresentar uma notificação que o informa que a sua fórmula tem um erro legítimo que tem de ser corrigido.\n\nÉ recomendado que não adicione processadores de erros às suas fórmulas até ter mesmo a certeza de que funcionam bem.",null,"Maçãs",50,null,"Carne de Vaca",50]
["Anterior",null,"Laranjas",20,null,"Frango",30]
["Seguinte",null,"Bananas",60,null,"Porco",10]
["Mais informações na Web",null,"Limões",40,null,"Peixe",50]
["Tudo sobre a função PROCV"]
["Tudo sobre as funções ÍNDICE/CORRESP",null,"Maçãs",null,null,"Porco"]
["Tudo sobre a função SE.ERRO"]
["Utilizar tabelas dinâmicas para analisar dados de folhas de cálculo"]
["Formação online gratuita do Excel"]
{"$rows_empty":9}
[null,null,"Se a função SOMA na célula D42 pudesse falar, ela diria: Some os valores nas células D38, D39, D40 e D41."]
[null,null,"Item","Quantidade",null,"Item","Quantidade"]
[null,null,"Pão",50,null,"Pão",50]
[null,null,"Dónutes",100,null,"Dónutes",100]
[null,null,"Bolachas",40,null,"Bolachas",40]
[null,null,"Bolos",50,null,"Bolos",50]
[null,null,"Tartes",20,null,"Tartes",20]
[]
[{"$nulls":3},{"$f":"VLOOKUP(C43,C37:D41,2,FALSE)","v":{"$error":"#N/A"}},null,"Pastelaria",{"$f":"IFERROR(VLOOKUP(F43,F37:G41,2,FALSE),\"\")","v":""}]

{"sheet":"Funções Condicionais","index":9,"n_rows":123,"n_cols":34,"rows_kept":123}
["Funções condicionais – SOMA.SE"]
["As funções condicionais permitem-lhe somar, calcular a média, contar ou obter o valor mínimo ou máximo de um intervalo com base numa condição ou critérios que especificar. Por exemplo, nesta lista de frutas, quantas maçãs existem? Ou quantas laranjas são da variedade Valencia Late?",null,"Fruta","Quantidade",null,"Fruta","Variedade","Quantidade",{"$nulls":17},"Fruta",null,"Maçãs",null,"Laranjas",null,"Bananas",null,"Limões"]
["A função SOMA.SE permite-lhe somar num intervalo com base em critérios específicos que procura noutro intervalo, por exemplo, quantas Maçãs tem. Selecione a célula D17 e escreva =SOMA.SE(C3:C14;C17;D3:D14). A função SOMA.SE tem a seguinte estrutura:",null,"Maçãs",50,null,"Maçãs","Fuji",50,{"$nulls":17},"Maçãs",null,"Fuji",null,"Valencia Late",null,"Pequena Anã",null,"Lisboa"]
["=SOMA.SE(C3:C14;C17;D3:D14)",null,"Laranjas",20,null,"Laranjas","Valencia Late",20,{"$nulls":17},"Laranjas",null,"Bravo de Esmolfe",null,"Navelate",null,"Eilon",null,"Eureka"]
["Em que intervalo quer procurar?",null,"Bananas",60,null,"Bananas","Pequena Anã",60,{"$nulls":17},"Bananas"]
["Que valor (texto ou número) quer procurar?",null,"Limões",40,null,"Limões","Lisboa",40,{"$nulls":17},"Limões"]
["Para cada correspondência encontrada, que intervalo quer somar?",null,"Maçãs",50,null,"Maçãs","Bravo de Esmolfe",50]
["A função SOMA.SE.S é semelhante à função SOMA.SE, mas permite-lhe utilizar múltiplos critérios. Neste exemplo, pode procurar Fruta e Variedade em vez de apenas Fruta. Selecione a célula H17 e escreva =SOMA.SE.S(H3:H14;F3:F14;F17;G3:G14;G17). A função SOMA.SE.S tem a seguinte estrutura:\n",null,"Laranjas",20,null,"Laranjas","Navelate",20]
["=SOMA.SE.S(H3:H14;F3:F14;F17;G3:G14;G17)",null,"Bananas",60,null,"Bananas","Eilon",60]
["Que intervalo quer somar?",null,"Limões",40,null,"Limões","Eureka",40]
["Este é o primeiro intervalo onde procurar correspondências",null,"Maçãs",50,null,"Maçãs","Bravo de Esmolfe",50]
["Estes são os critérios para a primeira correspondência",null,"Laranjas",20,null,"Laranjas","Navelate",20]
["Este é o segundo intervalo onde procurar correspondências",null,"Bananas",60,null,"Bananas","Pequena Anã",60]
["Estes são os critérios para a segunda correspondência",null,"Limões",40,null,"Limões","Eureka",40]
["SUGESTÃO AVANÇADA\nCada célula das colunas Fruta e Variedade tem uma lista pendente, onde pode selecionar fruta diferente. Experimente e veja como as fórmulas são atualizadas automaticamente."]
["Desça para ver mais detalhes",null,"Fruta","SOMA.SE",null,"Fruta","Variedade","SOMA.SE.S"]
["Passo seguinte",null,"Maçãs",null,null,"Laranjas","Valencia Late"]
["Funções condicionais – CONTAR.SE"]
["As funções CONTAR.SE e CONTAR.SE.S permitem-lhe contar valores num intervalo com base em critérios que especificar. São um pouco diferentes das funções SE e SE.S, na medida em que só têm um intervalo de critérios e critérios. Não avaliam um intervalo e analisam outro para resumir."]
["Selecione a célula D64 e escreva =CONTAR.SE(C50:C61;C64). A função CONTAR.SE tem a seguinte estrutura:"]
["=CONTAR.SE(C50:C61;C64)"]
["Em que intervalo quer procurar?"]
["Que valor (texto ou número) quer procurar?"]
["A função CONTAR.SE.S é semelhante à função SOMA.SE, mas permite-lhe utilizar múltiplos critérios. Neste exemplo, pode procurar por Fruta e Variedade em vez de apenas por Fruta. Selecione a célula H64 e escreva =CONTAR.SE.S(F50:F61;F64;G50:G61;G64). A função CONTAR.SE.S tem a seguinte estrutura:\n"]
["=CONTAR.SE.S(F50:F61;F64;G50:G61;G64)"]
["Este é o primeiro intervalo a contar"]
["Estes são os critérios para a primeira correspondência"]
["Este é o segundo intervalo a contar"]
["Estes são os critérios da segunda correspondência"]
["Desça para ver mais detalhes"]
["Seguinte"]
["Mais funções condicionais"]
["Já viu as funções SOMA.SE, SOMA.SE.S, CONTAR.SE e CONTAR.SE.S. Agora pode experimentar sozinho com outras funções, tais como MÉDIA.SE, MÉDIA.SE.S, MÁXIMO.SE.S, MÍNIMO.SE.S. Têm todas uma estrutura semelhante pelo que, depois de escrever uma fórmula, pode simplesmente substituir o nome da função pelo que pretende. Escrevemos todas as funções de que irá precisar na célula E106, pelo que pode copiar/colar estas ou escrevê-las manualmente para praticar.\n\nSOMA.SE \t=SOMA.SE(C92:C103;C106;E92:E103) \nSOMA.SE.S \t=SOMA.SE.S(E92:E103;C92:C103;C106;D92:D103;D106) \nMÉDIA.SE \t=MÉDIA.SE(C92:C103;C106;E92:E103) \nMÉDIA.SE.S\t=MÉDIA.SE.S(E92:E103;C92:C103;C106;D92:D103;D106)\nCONTAR.SE \t=CONTAR.SE(C92:C103;C106)\nCONTAR.SE.S \t=CONTAR.SE.S(C92:C103;C106;D92:D103;D106) \nMÁXIMO.SE.S \t= MÁXIMO.SE.S (E92:E103;C92:C103;C106;D92:D103;D106)\nMÍNIMO.SE.S \t=MÍNIMO.SE.S(E92:E103;C92:C103;C106;D92:D103;D106)\n"]
["Desça para ver mais detalhes"]
["Seguinte"]
["A função SOMA.SE com um argumento de valor"]
["Eis um exemplo da função SOMA.SE a utilizar o argumento maior que (>) para localizar todos os valores maiores que uma quantidade específica:"]
[{"$f":"SUMIF(D118:D122,\">=50\")","v":200}]
["Some alguns valores com base neste critério:"]
["...Procure nestas células...\n "]
["...e se o valor for superior a 50, some tudo.\n "]
["NOTA: se achar que está a criar demasiadas fórmulas condicionais, talvez uma tabela dinâmica seja uma melhor solução. Consulte este artigo sobre tabelas dinâmicas para obter mais informações."]
["Mais informações na Web"]
["Tudo sobre a função SOMA.SE"]
["Tudo sobre a função SOMA.SE.S"]
["Tudo sobre a função CONTAR.SE"]
["Tudo sobre a função CONTAR.SE.S"]
["Tudo sobre a função MÉDIA.SE"]
["Tudo sobre a função MÉDIA.SE.S",null,"Fruta","Quantidade",null,"Fruta","Variedade","Quantidade"]
["Tudo sobre a função MÍNIMO.SE.S",null,"Maçãs",50,null,"Maçãs","Fuji",50]
["Tudo sobre a função MÁXIMO.SE.S",null,"Laranjas",20,null,"Laranjas","Valencia Late",20]
["Criar uma lista pendente",null,"Bananas",60,null,"Bananas","Pequena Anã",60]
["Formação online gratuita do Excel",null,"Limões",40,null,"Limões","Lisboa",40]
["Voltar ao início",null,"Maçãs",50,null,"Maçãs","Bravo de Esmolfe",50]
["Seguinte",null,"Laranjas",20,null,"Laranjas","Navelate",20]
[null,null,"Bananas",60,null,"Bananas","Eilon",60]
[null,null,"Limões",40,null,"Limões","Eureka",40]
[null,null,"Maçãs",50,null,"Maçãs","Bravo de Esmolfe",50]
[null,null,"Laranjas",20,null,"Laranjas","Navelate",20]
[null,null,"Bananas",60,null,"Bananas","Pequena Anã",60]
[null,null,"Limões",40,null,"Limões","Eureka",40]
[]
[null,null,"Fruta","CONTAR.SE",null,"Fruta","Variedade","CONTAR.SE.S"]
[null,null,"Maçãs",{"$f":"COUNTIF(C50:C61,C64)","v":3},null,"Laranjas","Valencia Late",{"$f":"COUNTIFS(F50:F61,F64,G50:G61,G64)","v":1}]
{"$rows_empty":26}
[null,null,"Fruta","Variedade","Quantidade"]
[null,null,"Maçãs","Fuji",50]
[null,null,"Laranjas","Valencia Late",20]
[null,null,"Bananas","Pequena Anã",60]
[null,null,"Limões","Lisboa",40]
[null,null,"Maçãs","Bravo de Esmolfe",50]
[null,null,"Laranjas","Navelate",20]
[null,null,"Bananas","Eilon",60]
[null,null,"Limões","Eureka",40]
[null,null,"Maçãs","Bravo de Esmolfe",50]
[null,null,"Laranjas","Navelate",20]
[null,null,"Bananas","Pequena Anã",60]
[null,null,"Limões","Eureka",40]
[]
[null,null,"Fruta","Variedade","Experimente"]
[null,null,"Limões","Eureka",{"$f":"AVERAGEIFS(E92:E103,C92:C103,C106,D92:D103,D106)","v":40}]
{"$rows_empty":10}
[null,null,"Item","Quantidade"]
[null,null,"Pão",50]
[null,null,"Dónutes",100]
[null,null,"Bolachas",40]
[null,null,"Bolos",50]
[null,null,"Tartes",20]
[{"$nulls":3},{"$f":"SUMIF(D118:D122,\">=50\")","v":200}]

{"sheet":"Assistente de Funções","index":10,"n_rows":14,"n_cols":4,"rows_kept":14}
["Utilizar o Assistente de Funções"]
["Se sabe o nome da função que pretende, mas não tem a certeza de como a criar, pode utilizar o Assistente de Funções como apoio.\n"]
["Selecione a célula D10 e, em seguida, aceda a Fórmulas > Inserir Função > escreva PROCV na caixa Procurar uma função e clique em Ir. Quando vir a função PROCV realçada, clique em OK na parte inferior. Ao selecionar uma função na lista, o Excel apresenta a respetiva sintaxe.\n"]
["Em seguida, introduza os argumentos de função nas respetivas caixas de texto. À medida que introduz cada uma, o Excel avalia-a e mostra o resultado, como o resultado final na parte inferior. À medida que introduz cada secção, os critérios de cada argumento são apresentados na parte inferior do formulário. Prima OK quando terminar e o Excel irá introduzir a fórmula automaticamente.\n\n\n",null,"Fruta","Quantidade"]
["INTERESSANTE\nDeverá ter a fórmula =PROCV(C10;C5:D8;2;FALSO)",null,"Maçãs",50]
["INFORMAÇÕES ÚTEIS\nPode escrever referências de células e de intervalos ou selecioná-los com o rato.",null,"Laranjas",20]
["INFORMAÇÕES ÚTEIS\nÀ medida que introduz as secções de cada argumento, a descrição do argumento será apresentada na parte inferior do formulário, por cima do Resultado da fórmula.\n",null,"Bananas",60]
["Anterior",null,"Limões",40]
["Seguinte"]
["Mais informações na Web",null,"Maçãs",{"$f":"VLOOKUP(C10,C5:D8,2,FALSE)","v":50}]
["Descrição geral de fórmulas no Excel"]
["Funções do Excel (por categoria)"]
["Funções do Excel (por ordem alfabética)"]
["Formação online gratuita do Excel"]

{"sheet":"Erros em Fórmulas","index":11,"n_rows":36,"n_cols":4,"rows_kept":36}
["Corrigir erros em fórmulas"]
["Eventualmente, poderá deparar-se com uma fórmula que contém um erro, que o Excel irá apresentar como #NomeDoErro. Os erros podem ser úteis na medida em que indicam que algo não está correto, mas podem ser difíceis de corrigir. Felizmente, existem diversas opções que o podem ajudar a descobrir a origem do erro e a corrigi-lo.\n"]
["Verificar erros – aceda a Fórmulas > Verificação de Erros. Será apresentada uma caixa de diálogo que o irá informar de um motivo geral para um erro específico. Na célula D9, é apresentado o erro #N/D porque não existe um valor correspondente a \"Maçã\". Pode corrigir este erro ao utilizar um valor existente, suprimir o erro com a função SE.ERRO ou ignorá-lo, já que irá desaparecer quando utilizar um valor existente.\n",null,"Fruta","Quantidade"]
["Se clicar em Ajuda para este Erro, será aberto um tópico de ajuda específico para a mensagem de erro em questão. Se clicar em Mostrar Passos do Cálculo, será carregada uma caixa de diálogo Avaliar Fórmula.\n",null,"Maçãs",50]
["Cada vez que clicar em Avaliar, o Excel irá orientá-lo por cada secção da fórmula. Não explica por que razão ocorreu um erro, mas irá indicar-lhe em que parte ocorreu. Depois disto, aceda ao tópico de ajuda para perceber o que se passou com a sua fórmula.\n",null,"Laranjas",20]
["EXPERIMENTE\nO que está errado aqui? Pista: estamos a tentar aplicar a função SOMA a todos os itens.",null,"Bananas",60]
["INFORMAÇÕES ÚTEIS\nAo clicar em Opções poderá definir regras para quando forem apresentados ou ignorados erros no Excel.\n",null,"Limões",40]
["Anterior"]
["Seguinte",null,"Maçã",{"$f":"VLOOKUP(C9,C3:D7,2,FALSE)","v":{"$error":"#N/A"}}]
["Mais informações na Web"]
["Detetar erros em fórmulas"]
["Como evitar fórmulas quebradas"]
["Avaliar uma fórmula aninhada passo a passo"]
["Formação online gratuita do Excel"]
{"$rows_empty":15}
[null,null,"Fruta","Quantidade"]
[null,null,"Maçãs",50]
[null,null,"Laranjas",20]
[null,null,"Bananas",60]
[null,null,"Limões",40]
[]
[null,null,"Total",{"$f":"sume(D31:D34)","v":{"$error":"#NAME?"}}]

{"sheet":"Saiba mais","index":12,"n_rows":5,"n_cols":1,"rows_kept":5}
["Tem mais perguntas sobre o Excel?"]
["Prima Alt+H e escreva o que pretende saber."]
["Continue. Ainda há muito mais para saber sobre o Excel:"]
["Comunidade: Faça perguntas e ligue-se a outros fãs do Excel.\n"]
["Quer saber as novidades?\nOs subscritores do Office 365 obtêm atualizações contínuas e novas funcionalidades.\n\n"]